Workbook

Sheet RNAinVAL_CPB_stages_body_parts
B2: Experiment name: | C2: RNAinVAL_CPB_stages_body_parts
I3: BEETLE LIFE STAGE EXPRESSION
C5: Target gene name | J5: Target gene name | Q5: Target gene name SE | AQ5: dsMESH article
B6: Sample name | C6: L.decemlineata / vATPaseE | D6: L.decemlineata / JHBP_qPCR_TqMn | E6: L.decemlineata / LdAlas | F6: L.decemlineata / LdMesh | G6: L.decemlineata / Ld_JHBP-like | I6: Sample group | J6: vATPaseE | K6: JHBP_qPCR_TqMn | L6: LdAlas | M6: LdMesh | N6: JHBP family (SYBR) | P6: Sample group | Q6: vATPaseE | R6: JHBP_qPCR_TqMn | S6: LdAlas | T6: LdMesh | U6: =N6 -> JHBP family (SYBR)
B7: egg early 3 | C7: / | D7: 0.097075 | E7: 0.106296 | F7: 0.015605 | G7: 0.00063 | I7: egg (early) | J7: =AVERAGE(C7:C10) -> 6.990193 | K7: =AVERAGE(D7:D10) -> 0.07766 | L7: =AVERAGE(E7:E10) -> 0.25486625 | M7: =AVERAGE(F7:F10) -> 0.0373275 | N7: =AVERAGE(G7:G10) -> 0.002075 | P7: egg (early) | Q7: =_xlfn.STDEV.S(C7:C10)/SQRT(COUNT(C7:C10)) -> 4.449123197 | R7: =_xlfn.STDEV.S(D7:D10) -> 0.03883 | S7: =_xlfn.STDEV.S(E7:E10) -> 0.236998873 | T7: =_xlfn.STDEV.S(F7:F10) -> 0.05487085941 | U7: =_xlfn.STDEV.S(G7:G10) -> 0.002502813417
B8: egg early 4 | C8: 15.887044 | D8: 0.097075 | E8: 0.072117 | F8: 0.008315 | G8: 0.00063 | I8: egg (late) | J8: =AVERAGE(C11:C13) -> 12.766535 | K8: =AVERAGE(D11:D13) -> 92.69252367 | L8: =AVERAGE(E11:E13) -> 1.572307333 | M8: =AVERAGE(F11:F13) -> 1.037515 | N8: =AVERAGE(G11:G13) -> 1.701898 | P8: egg (late) | Q8: =_xlfn.STDEV.S(C11:C13)/SQRT(COUNT(C11:C13)) -> 1.402421978 | R8: =_xlfn.STDEV.S(D11:D13) -> 130.3700627 | S8: =_xlfn.STDEV.S(E11:E13) -> 0.2546594408 | T8: =_xlfn.STDEV.S(F11:F13) -> 0.09490727542 | U8: =_xlfn.STDEV.S(G11:G13) -> 0.3574628178
B9: eggs early 2 | C9: 2.678235 | D9: 0.097075 | E9: 0.591038 | F9: 0.119404 | G9: / | I9: neonatal larva | J9: =AVERAGE(C14:C16) -> 13.52033367 | K9: =AVERAGE(D14:D16) -> 115.7728693 | L9: =AVERAGE(E14:E16) -> 2.833569667 | M9: =AVERAGE(F14:F16) -> 0.9130003333 | N9: =AVERAGE(G14:G16) -> 2.3690615 | P9: neonatal larva | Q9: =_xlfn.STDEV.S(C14:C16)/SQRT(COUNT(C14:C16)) -> 3.162425694 | R9: =_xlfn.STDEV.S(D14:D16) -> 115.1113531 | S9: =_xlfn.STDEV.S(E14:E16) -> 0.7044952662 | T9: =_xlfn.STDEV.S(F14:F16) -> 0.1694303063 | U9: =_xlfn.STDEV.S(G14:G16) -> 0.9212406348
B10: eggs early 3 | C10: 2.4053 | D10: 0.019415 | E10: 0.250014 | F10: 0.005986 | G10: 0.004965 | I10: 2nd instar gut | J10: =AVERAGE(C17:C20) -> 19.976116 | K10: =AVERAGE(D17:D20) -> 739.7461775 | L10: =AVERAGE(E17:E20) -> 5.3606655 | M10: =AVERAGE(F17:F20) -> 2.124833333 | N10: =AVERAGE(G17:G20) -> 9.874057 | P10: 2nd instar gut | Q10: =_xlfn.STDEV.S(C17:C20)/SQRT(COUNT(C17:C20)) -> 3.693566126 | R10: =_xlfn.STDEV.S(D17:D20) -> 696.7745766 | S10: =_xlfn.STDEV.S(E17:E20) -> 1.854776178 | T10: =_xlfn.STDEV.S(F17:F20) -> 0.6711545605 | U10: =_xlfn.STDEV.S(G17:G20) -> 2.252062239
B11: egg late 1 | C11: 11.29843 | D11: 13.677119 | E11: 1.31172 | F11: 0.945596 | G11: 1.871321 | I11: 3rd instar gut | J11: =AVERAGE(C21:C23) -> 10.44269833 | K11: =AVERAGE(D21:D23) -> 340.8604203 | L11: =AVERAGE(E21:E23) -> 4.211640667 | M11: =AVERAGE(F21:F23) -> 2.007273 | N11: =AVERAGE(G21:G23) -> 10.53209533 | P11: 3rd instar gut | Q11: =_xlfn.STDEV.S(C21:C23)/SQRT(COUNT(C21:C23)) -> 1.882979689 | R11: =_xlfn.STDEV.S(D21:D23) -> 279.8086715 | S11: =_xlfn.STDEV.S(E21:E23) -> 2.832664587 | T11: =_xlfn.STDEV.S(F21:F23) -> 0.4874541178 | U11: =_xlfn.STDEV.S(G21:G23) -> 4.689995775
B12: egg late 2 | C12: 15.570337 | D12: 243.167688 | E12: 1.820593 | F12: 1.135152 | G12: 1.291224 | I12: 4th instar gut (early) | J12: =AVERAGE(C24:C27) -> 37.8115675 | K12: =AVERAGE(D24:D27) -> 176.831982 | L12: =AVERAGE(E24:E27) -> 7.318629333 | M12: =AVERAGE(F24:F27) -> 2.2838085 | N12: =AVERAGE(G24:G27) -> 18.8578555 | P12: 4th instar gut (early) | Q12: =_xlfn.STDEV.S(C24:C27)/SQRT(COUNT(C24:C27)) -> 28.7043235 | R12: =_xlfn.STDEV.S(D24:D27) -> 128.2908117 | S12: =_xlfn.STDEV.S(E24:E27) -> 3.679319118 | T12: =_xlfn.STDEV.S(F24:F27) -> 2.055454054 | U12: =_xlfn.STDEV.S(G24:G27) -> 1.254784318
B13: egg late 3 | C13: 11.430838 | D13: 21.232764 | E13: 1.584609 | F13: 1.031797 | G13: 1.943149 | I13: 4th instar gut (late) | J13: =AVERAGE(C28:C31) -> 28.4421115 | K13: =AVERAGE(D28:D31) -> 215.7300865 | L13: =AVERAGE(E28:E31) -> 3.70912 | M13: =AVERAGE(F28:F31) -> 5.31974025 | N13: =AVERAGE(G28:G31) -> 15.13808533 | P13: 4th instar gut (late) | Q13: =_xlfn.STDEV.S(C28:C31)/SQRT(COUNT(C28:C31)) -> 10.7070941 | R13: =_xlfn.STDEV.S(D28:D31) -> 316.4301544 | S13: =_xlfn.STDEV.S(E28:E31) -> 2.266864643 | T13: =_xlfn.STDEV.S(F28:F31) -> 2.016034258 | U13: =_xlfn.STDEV.S(G28:G31) -> 11.27932502
B14: neonatal 1 | C14: 19.717684 | D14: 46.064467 | E14: 3.592386 | F14: 0.97466 | G14: 3.020477 | I14: pupal gut | J14: =AVERAGE(C32:C35) -> 42.6722385 | K14: =AVERAGE(D32:D35) -> 0.058245 | L14: =AVERAGE(E32:E35) -> 1.0003215 | M14: =AVERAGE(F32:F35) -> 2.64419925 | N14: =AVERAGE(G32:G35) -> 0.00167825 | P14: pupal gut | Q14: =_xlfn.STDEV.S(C32:C35)/SQRT(COUNT(C32:C35)) -> 10.10344932 | R14: =_xlfn.STDEV.S(D32:D35) -> 0.04483702191 | S14: =_xlfn.STDEV.S(E32:E35) -> 0.511351179 | T14: =_xlfn.STDEV.S(F32:F35) -> 0.9272418101 | U14: =_xlfn.STDEV.S(G32:G35) -> 0.0020965
B15: neonatal 2 | C15: 11.515937 | D15: 248.63818 | E15: 2.708055 | F15: 1.042966 | G15: 1.717646 | I15: adult gut | J15: =AVERAGE(C36:C39) -> 38.40967125 | K15: =AVERAGE(D36:D39) -> 1642.005646 | L15: =AVERAGE(E36:E39) -> 9.374212 | M15: =AVERAGE(F36:F39) -> 4.37013425 | N15: =AVERAGE(G36:G39) -> 42.4914345 | P15: adult gut | Q15: =_xlfn.STDEV.S(C36:C39)/SQRT(COUNT(C36:C39)) -> 10.1438804 | R15: =_xlfn.STDEV.S(D36:D39) -> 1100.92996 | S15: =_xlfn.STDEV.S(E36:E39) -> 6.127612489 | T15: =_xlfn.STDEV.S(F36:F39) -> 1.093657715 | U15: =_xlfn.STDEV.S(G36:G39) -> 41.26069049
B16: neonatal 3 | C16: 9.32738 | D16: 52.615961 | E16: 2.200268 | F16: 0.721375 | G16: /
B17: 2nd larva 2 | C17: 27.28364 | D17: 1744.086495 | E17: 6.184793 | F17: 2.899388 | G17: / | J17: Target gene name - scaled to egg early group average | Q17: Target gene name - scaled to egg early group average
B18: 2nd larva 3 | C18: / | D18: 279.121708 | E18: 4.732906 | F18: / | G18: 11.058099 | I18: Sample group | J18: vATPaseE | K18: JHBP_qPCR_TqMn | L18: LdAlas | M18: LdMesh | N18: =N6 -> JHBP family (SYBR) | P18: Sample group | Q18: vATPaseE | R18: JHBP_qPCR_TqMn | S18: LdAlas | T18: LdMesh | U18: =U6 -> JHBP family (SYBR)
B19: 2nd larva 4 | C19: 17.25903 | D19: 677.407459 | E19: 7.410508 | F19: 1.715257 | G19: 11.287109 | I19: egg (early) | J19: =J7/$J$7 -> 1 | K19: =K7/$K$7 -> 1 | L19: =L7/$L$7 -> 1 | M19: =M7/$M$7 -> 1 | N19: =N7/$M$7 -> 0.05558904293 | O19: whole body samples (no dissection performed) | P19: egg (early) | Q19: =Q7/$J$7 -> 0.6364807377 | R19: =R7/$K$7 -> 0.5 | S19: =S7/$L$7 -> 0.9298950841 | T19: =T7/$M$7 -> 1.469984848 | U19: =U7/$M$7 -> 0.06705012168
B20: 2nd larva 5 | C20: 15.385678 | D20: 258.369048 | E20: 3.114455 | F20: 1.759855 | G20: 7.276963 | I20: egg (late) | J20: =J8/$J$7 -> 1.82634943 | K20: =K8/$K$7 -> 1193.568422 | L20: =L8/$L$7 -> 6.169146889 | M20: =M8/$M$7 -> 27.79492331 | N20: 45.59367758 | O20: whole body samples (no dissection performed) | P20: egg (late) | Q20: =Q8/$J$7 -> 0.2006270754 | R20: =R8/$K$7 -> 1678.728595 | S20: =S8/$L$7 -> 0.9991885579 | T20: =T8/$M$7 -> 2.542556437 | U20: 9.576393217
B21: 3rd larva 1 | C21: 6.842017 | D21: 173.811853 | E21: 2.852142 | F21: 1.444784 | G21: 8.777537 | I21: neonatal larva | J21: 1.934186033 | K21: 1490.765765 | L21: 11.11786934 | M21: 24.45918782 | N21: 63.46692117 | O21: whole body samples (no dissection performed) | P21: neonatal larva | Q21: 0.452408924 | R21: 1482.247657 | S21: 2.764176372 | T21: =T9/$M$7 -> 4.539020998 | U21: 24.67994467
B22: 3rd larva 2 | C22: 11.287446 | D22: 184.876928 | E22: 7.467785 | F22: 2.306297 | G22: 15.846401 | I22: 2nd instar gut | J22: 2.857734543 | K22: 9525.44653 | L22: 21.03324979 | M22: 56.92407296 | N22: 264.5250017 | O22: guts | P22: 2nd instar gut | Q22: 0.5283925818 | R22: 8972.116619 | S22: 7.277449164 | T22: =T10/$M$7 -> 17.9801637 | U22: 60.33252265
B23: 3rd larva 3 | C23: 13.198632 | D23: 663.89248 | E23: 2.314995 | F23: 2.270738 | G23: 6.972348 | I23: 3rd instar gut | J23: 1.493907011 | K23: 4389.137527 | L23: 16.52490538 | M23: 53.77464336 | N23: 282.153783 | O23: guts | P23: 3rd instar gut | Q23: 0.2693744921 | R23: 3602.996028 | S23: 11.11431815 | T23: =T11/$M$7 -> 13.05884717 | U23: 125.6445188
B24: 4th early larva 1 | C24: 9.107244 | D24: 49.934975 | E24: 8.823023 | F24: 3.737234 | G24: 17.970589 | I24: 4th instar gut (early) | J24: 5.409230832 | K24: 2277.002086 | L24: 28.71556879 | M24: 61.18300181 | N24: 505.200067 | O24: guts | P24: 4th instar gut (early) | Q24: 4.106370668 | R24: 1651.954824 | S24: 14.43627439 | T24: =T12/$M$7 -> 55.06540899 | U24: 33.61554665
B25: 4th early larva 2 | C25: / | D25: / | E25: / | F25: / | G25: / | I25: 4th instar gut (late) | J25: 4.068859258 | K25: 2777.879043 | L25: 14.55320192 | M25: 142.5153104 | N25: 405.5477954 | O25: guts | P25: 4th instar gut (late) | Q25: 1.531730826 | R25: 4074.557744 | S25: 8.894330431 | T25: =T13/$M$7 -> 54.00935658 | U25: 302.1719918
B26: 4th early larva 3 | C26: 66.515891 | D26: 306.472589 | E26: 3.125504 | F26: 0.830383 | G26: / | I26: pupal gut | J26: 6.104586597 | K26: 0.75 | L26: 3.924888054 | M26: 70.83783404 | N26: 0.04496015002 | O26: guts | P26: pupal gut | Q26: 1.445374873 | R26: 0.5773502692 | S26: 2.006351092 | T26: =T14/$M$7 -> 24.84071556 | U26: 0.05616502579
B27: 4th early larva 4 | C27: / | D27: 174.088382 | E27: 10.007361 | F27: / | G27: 19.745122 | I27: adult gut | J27: 5.494794099 | K27: 21143.51848 | L27: 36.78090763 | M27: 117.0754605 | N27: 1138.34129 | O27: guts | P27: adult gut | Q27: 1.451158845 | R27: 14176.28071 | S27: 24.04246341 | T27: =T15/$M$7 -> 29.29898104 | U27: 1105.369781
B28: 4th late larva 1 | C28: 14.970458 | D28: 684.289409 | E28: 1.800047 | F28: 5.606807 | G28: 4.157602
B29: 4th late larva 2 | C29: 12.973855 | D29: 9.64393 | E29: 4.104115 | F29: 7.814414 | G29: /
B30: 4th late larva 3 | C30: 59.285685 | D30: 128.758071 | E30: 6.754087 | F30: 2.924296 | G30: 26.694208
B31: 4th late larva 4 | C31: 26.538448 | D31: 40.228936 | E31: 2.178231 | F31: 4.933444 | G31: 14.562446
B32: pupa 1 | C32: 36.123475 | D32: 0.097075 | E32: 0.796517 | F32: 2.049427 | G32: 0.00063
B33: pupa 2 | C33: 67.319459 | D33: 0.019415 | E33: 0.894664 | F33: 2.064289 | G33: 0.004823
B34: pupa 3 | C34: 19.291098 | D34: 0.019415 | E34: 0.570306 | F34: 2.457156 | G34: 0.00063
B35: pupa 4 | C35: 47.954922 | D35: 0.097075 | E35: 1.739799 | F35: 4.005925 | G35: 0.00063
B36: adult 1 | C36: 30.498929 | D36: 2743.555087 | E36: 6.909974 | F36: 4.686142 | G36: 25.663764
B37: adult 2 | C37: 20.83529 | D37: 114.894705 | E37: 5.337474 | F37: 3.515508 | G37: 22.509075
B38: adult 3 | C38: 67.562523 | D38: 1862.203894 | E38: 18.504489 | F38: 3.49643 | G38: 104.182587
B39: adult 4 | C39: 34.741943 | D39: 1847.368896 | E39: 6.744911 | F39: 5.782457 | G39: 17.610312
B40: foregut | C40: 9.540445 | D40: 0.097075 | E40: 4.564681 | F40: 13.102608 | G40: 1.413884
B41: midgut | C41: 11.896637 | D41: / {8.13} | E41: 13.101529 | F41: 11.617414 | G41: 24.284446
B42: hindgut | C42: 14.405512 | D42: 0.019415 | E42: 4.310651 | F42: / {11.76} | G42: 0.102344
B43: haemolymph | C43: 11.795692 | D43: 1.053302 | E43: 8.533319 | F43: 8.562693 | G43: 6.019332
B44: carcass | C44: 8.651942 | D44: / {53.07} | E44: 10.921559 | F44: / {9.80} | G44: 26.424088
B45: legs | C45: 11.758149 | D45: 273.369597 | E45: 9.513765 | F45: 5.694581 | G45: 39.94378
B47: CV | C47: =_xlfn.STDEV.S(C7:C39)/AVERAGE(C7:C39) -> 0.801931955 | D47: =_xlfn.STDEV.S(D7:D39)/AVERAGE(D7:D39) -> 1.733660129 | E47: =_xlfn.STDEV.S(E7:E39)/AVERAGE(E7:E39) -> 0.9670765262 | F47: =_xlfn.STDEV.S(F7:F39)/AVERAGE(F7:F39) -> 0.8050075203 | G47: =_xlfn.STDEV.S(G7:G39)/AVERAGE(G7:G39) -> 1.696929152 | S47: RED BARS: CPB FEEDING LIFE STAGES
C49: expressed everywhere | D49: predominantly expressed in legs and carcass??? | E49: high expression in midgut, | F49: very stable expression in all body parts
D50: 10x more expressed in adults than larvae? | E50: also carcass and legs!
I61: BEETLE LARVAL BODY PARTS EXPRESSION
J63: vATPaseE | K63: JHBP_qPCR_TqMn | L63: LdAlas | M63: LdMesh | N63: =N6 -> JHBP family (SYBR)
I64: foregut | J64: 8.663382 | K64: 0.095978 | L64: 4.182746 | M64: 11.993635 | N64: 1.413884
I65: midgut | J65: 11.291331 | K65: 8.13 | L65: 12.43075 | M65: 11.036204 | N65: 24.284446
I66: hindgut | J66: 12.976718 | K66: 0.019196 | L66: 3.869198 | M66: 11.76 | N66: 0.102344
I67: haemolymph | J67: 11.050108 | K67: 1.032246 | L67: 8.029665 | M67: 8.051379 | N67: 6.019332 | P67: NOT CONSISTENT WITH OTHER PUBLICATIONS FOR vATPaseE and OUR ARTILCE FOR JHBP!
I68: carcass | J68: 10.907329 | K68: 53.07 | L68: 13.777216 | M68: 9.8 | N68: 26.424088 | P68: NOT CONSISTENT WITH OUR ARTILCE FOR JHBP!
I69: legs | J69: 17.330668 | K69: 394.787238 | L69: 13.862831 | M69: 8.258738 | N69: 39.94378 | P69: WRONG RESULTS FOR LEGS! TAKE NEW SAMPLES!
I70: old cDNA samples, not reliable results
I105: NEW SAMPLES TO CHECK IF THERE IS REALLY EXPRESSION OF JHBP IN LEGS:
J106: Target gene name
I107: Sample name | J107: Ld_JHBP-like | K107: JHBP_qPCR_TqMn | L107: LdAlas | M107: LdMesh
I108: 4thlarva_legs | J108: Under LOQ | K108: Under LOD | L108: 0.162907 | M108: Under LOQ
I109: adult_head | J109: Under LOQ | K109: Under LOQ | L109: 0.2782 | M109: Under LOQ
I110: adult_legs | J110: Under LOQ | K110: Under LOQ | L110: 0.249007 | M110: Under LOQ
I111: adult_antena | J111: Under LOQ | K111: Under LOQ | L111: 0.350583 | M111: Under LOQ
I113: ista umeritvena krivulja kot za vzorce zgoraj
I116: BEETLE LARVAL BODY PARTS EXPRESSION BOTH qPCR RUNS | O116: BEETLE LARVAL BODY PARTS EXPRESSION BOTH qPCR RUNS normalized to midgut sample
J118: vATPaseE | K118: JHBP_qPCR_TqMn | L118: LdAlas | M118: LdMesh | P118: vATPaseE | Q118: JHBP | R118: ALAS | S118: MESH
I119: larval midgut | J119: 11.291331 | K119: 8.13 | L119: 12.43075 | M119: 11.036204 | O119: larval midgut | P119: =J119/$J$119 -> 1 | Q119: =K119/$K$119 -> 1 | R119: =L119/$L$119 -> 1 | S119: =M119/$M$119 -> 1
I120: larval foregut | J120: 8.663382 | K120: 0.095978 | L120: 4.182746 | M120: 11.993635 | O120: larval foregut | P120: =J120/$J$119 -> 0.7672595906 | Q120: 0.01180541205 | R120: 0.3364838003 | S120: 1.086753652
I121: larval hindgut | J121: 12.976718 | K121: 0.019196 | L121: 3.869198 | M121: 11.76 | O121: larval hindgut | P121: =J121/$J$119 -> 1.149263802 | Q121: 0.002361131611 | R121: 0.3112602216 | S121: 1.065583782
I122: larval legs | J122: NA | K122: 0.095978 | L122: =+L108*3.39 -> 0.55225473 | M122: 0.007 | O122: larval legs | P122: NA | Q122: 0.01180541205 | R122: 0.04442650122 | S122: 0.0006342760609
I123: adult legs | J123: NA | K123: 0.095978 | L123: =+L110*3.39 -> 0.84413373 | M123: 0.007 | O123: adult legs | P123: NA | Q123: 0.01180541205 | R123: 0.06790690264 | S123: 0.0006342760609
I124: adult head | J124: NA | K124: 0.095978 | L124: =+L109*3.39 -> 0.943098 | M124: 0.007 | O124: adult head | P124: NA | Q124: 0.01180541205 | R124: 0.07586814955 | S124: 0.0006342760609
I125: adult antennae | J125: NA | K125: 0.095978 | L125: =+L111*3.39 -> 1.18847637 | M125: 0.007 | O125: adult antennae | P125: NA | Q125: 0.01180541205 | R125: 0.09560777668 | S125: 0.0006342760609
L126: alas numbers were multiplied by 3,39 to get to same level as previous analysis for the last four samples

Sheet Warning RNAinVAL_CPB_stages...
B2: Experiment name: | C2: RNAinVAL_CPB_stages_body_parts
C5: Target gene name
B6: Sample name | C6: L.decemlineata / vATPaseE | D6: L.decemlineata / JHBP_qPCR_TqMn | E6: L.decemlineata / LdAlas | F6: L.decemlineata / LdMesh | G6: L.decemlineata / Ld_JHBP-like
B7: egg early 3 | C7: QC target failed | D7: Under LOQ | E7: 0.106296 | F7: 0.015605 | G7: Under LOQ
B8: egg early 4 | C8: 15.887044 | D8: Under LOQ | E8: 0.072117 | F8: 0.008315 | G8: Under LOQ
B9: eggs early 2 | C9: 2.678235 | D9: Under LOQ | E9: 0.591038 | F9: 0.119404 | G9: QC target failed
B10: eggs early 3 | C10: 2.4053 | D10: Under LOD | E10: 0.250014 | F10: 0.005986 | G10: 0.004965
B11: egg late 1 | C11: 11.29843 | D11: 13.677119 | E11: 1.31172 | F11: 0.945596 | G11: 1.871321
B12: egg late 2 | C12: 15.570337 | D12: 243.167688 | E12: 1.820593 | F12: 1.135152 | G12: 1.291224
B13: egg late 3 | C13: 11.430838 | D13: 21.232764 | E13: 1.584609 | F13: 1.031797 | G13: 1.943149
B14: neonatal 1 | C14: 19.717684 | D14: 46.064467 | E14: 3.592386 | F14: 0.97466 | G14: 3.020477
B15: neonatal 2 | C15: 11.515937 | D15: 248.63818 | E15: 2.708055 | F15: 1.042966 | G15: 1.717646
B16: neonatal 3 | C16: 9.32738 | D16: 52.615961 | E16: 2.200268 | F16: 0.721375 | G16: QC target failed
B17: 2nd larva 2 | C17: 27.28364 | D17: 1744.086495 | E17: 6.184793 | F17: 2.899388 | G17: QC target failed
B18: 2nd larva 3 | C18: QC target failed | D18: 279.121708 | E18: 4.732906 | F18: QC target failed | G18: 11.058099
B19: 2nd larva 4 | C19: 17.25903 | D19: 677.407459 | E19: 7.410508 | F19: 1.715257 | G19: 11.287109
B20: 2nd larva 5 | C20: 15.385678 | D20: 258.369048 | E20: 3.114455 | F20: 1.759855 | G20: 7.276963
B21: 3rd larva 1 | C21: 6.842017 | D21: 173.811853 | E21: 2.852142 | F21: 1.444784 | G21: 8.777537
B22: 3rd larva 2 | C22: 11.287446 | D22: 184.876928 | E22: 7.467785 | F22: 2.306297 | G22: 15.846401
B23: 3rd larva 3 | C23: 13.198632 | D23: 663.89248 | E23: 2.314995 | F23: 2.270738 | G23: 6.972348
B24: 4th early larva 1 | C24: 9.107244 | D24: 49.934975 | E24: 8.823023 | F24: 3.737234 | G24: 17.970589
B25: 4th early larva 2 | C25: QC target failed | D25: QC target failed | E25: QC target failed | F25: QC target failed | G25: QC target failed
B26: 4th early larva 3 | C26: 66.515891 | D26: 306.472589 | E26: 3.125504 | F26: 0.830383 | G26: QC target failed
B27: 4th early larva 4 | C27: QC target failed | D27: 174.088382 | E27: 10.007361 | F27: QC target failed | G27: 19.745122
B28: 4th late larva 1 | C28: 14.970458 | D28: 684.289409 | E28: 1.800047 | F28: 5.606807 | G28: 4.157602
B29: 4th late larva 2 | C29: 12.973855 | D29: 9.64393 | E29: 4.104115 | F29: 7.814414 | G29: QC target failed
B30: 4th late larva 3 | C30: 59.285685 | D30: 128.758071 | E30: 6.754087 | F30: 2.924296 | G30: 26.694208
B31: 4th late larva 4 | C31: 26.538448 | D31: 40.228936 | E31: 2.178231 | F31: 4.933444 | G31: 14.562446
B32: pupa 1 | C32: 36.123475 | D32: Under LOQ | E32: 0.796517 | F32: 2.049427 | G32: Under LOQ
B33: pupa 2 | C33: 67.319459 | D33: Under LOD | E33: 0.894664 | F33: 2.064289 | G33: 0.004823
B34: pupa 3 | C34: 19.291098 | D34: Under LOD | E34: 0.570306 | F34: 2.457156 | G34: Under LOQ
B35: pupa 4 | C35: 47.954922 | D35: Under LOQ | E35: 1.739799 | F35: 4.005925 | G35: Under LOQ
B36: adult 1 | C36: 30.498929 | D36: 2743.555087 | E36: 6.909974 | F36: 4.686142 | G36: 25.663764
B37: adult 2 | C37: 20.83529 | D37: 114.894705 | E37: 5.337474 | F37: 3.515508 | G37: 22.509075
B38: adult 3 | C38: 67.562523 | D38: 1862.203894 | E38: 18.504489 | F38: 3.49643 | G38: 104.182587
B39: adult 4 | C39: 34.741943 | D39: 1847.368896 | E39: 6.744911 | F39: 5.782457 | G39: 17.610312
B40: foregut | C40: 9.540445 | D40: Under LOQ | E40: 4.564681 | F40: 13.102608 | G40: 1.413884
B41: midgut | C41: 11.896637 | D41: QC target failed | E41: 13.101529 | F41: 11.617414 | G41: 24.284446
B42: hindgut | C42: 14.405512 | D42: Under LOD | E42: 4.310651 | F42: QC target failed | G42: 0.102344
B43: haemolymph | C43: 11.795692 | D43: 1.053302 | E43: 8.533319 | F43: 8.562693 | G43: 6.019332
B44: carcass | C44: 8.651942 | D44: QC target failed | E44: 10.921559 | F44: QC target failed | G44: 26.424088
B45: legs | C45: 11.758149 | D45: 273.369597 | E45: 9.513765 | F45: 5.694581 | G45: 39.94378

Sheet reference_gene_expressions
C1: Referenčni geni / 18S | F1: Scaled Referenčni geni / 18S | G1: L.decemlineata / LdRP4 | J1: Scaled L.decemlineata / LdRP4 | L1: Reference copy number
C2: Sample name | D2: Dilution | E2: Quality controled copy no. | G2: Sample name | H2: Dilution | I2: Quality controled copy no. | J2: Scaled to Referenčni geni / 18S.
A4: ORIG. SORT | B4: SORT
A5: 41 | B5: 1 | C5: egg early 3 | D5: 10000 | E5: 329.4941 | F5: 329.4941 | G5: egg early 3 | H5: 100000 | I5: / | J5: / | L5: 329.49
A6: 42 | B6: 2 | C6: egg early 3 | D6: 1000 | E6: 411.4287 | F6: 411.4287 | G6: egg early 3 | H6: 10000 | I6: / | J6: / | L6: 411.43
A7: 43 | B7: 3 | C7: egg early 4 | D7: 10000 | E7: 300.7724 | F7: 300.7724 | G7: egg early 4 | H7: 100000 | I7: 13577.0481 | J7: 13577.0481 * 921.364 / 13595.2604 = 920.1297 | K7: 920.1297 | L7: 610.45
A8: 44 | B8: 4 | C8: egg early 4 | D8: 1000 | E8: 342.8325 | F8: 342.8325 | G8: egg early 4 | H8: 10000 | I8: 10099.2613 | J8: 10099.2613 * 921.364 / 13595.2604 = 684.4367 | K8: 684.4367 | L8: 513.63
A9: 51 | B9: 5 | C9: eggs early 2 | D9: 10000 | E9: 1799.8907 | F9: 1799.8907 | G9: eggs early 2 | H9: 100000 | I9: 34667.0782 | J9: 34667.0782 * 921.364 / 13595.2604 = 2349.4215 | K9: 2349.4215 | L9: 2074.66
A10: 52 | B10: 6 | C10: eggs early 2 | D10: 1000 | E10: 2236.1108 | F10: 2236.1108 | G10: eggs early 2 | H10: 10000 | I10: 31295.4098 | J10: 31295.4098 * 921.364 / 13595.2604 = 2120.9203 | K10: 2120.9203 | L10: 2178.52
A11: 53 | B11: 7 | C11: eggs early 3 | D11: 10000 | E11: 398.1884 | F11: 398.1884 | G11: eggs early 3 | H11: 100000 | I11: / | J11: / | L11: 398.19
A12: 54 | B12: 8 | C12: eggs early 3 | D12: 1000 | E12: 524.4492 | F12: 524.4492 | G12: eggs early 3 | H12: 10000 | I12: / | J12: / | L12: 524.45
A13: 45 | B13: 9 | C13: egg late 1 | D13: 10000 | E13: 2728.8473 | F13: 2728.8473 | G13: egg late 1 | H13: 100000 | I13: 35588.347 | J13: 35588.347 * 921.364 / 13595.2604 = 2411.8568 | K13: 2411.8568 | L13: 2570.35
A14: 46 | B14: 10 | C14: egg late 1 | D14: 1000 | E14: 2473.2353 | F14: 2473.2353 | G14: egg late 1 | H14: 10000 | I14: 32145.469 | J14: 32145.469 * 921.364 / 13595.2604 = 2178.5296 | K14: 2178.5296 | L14: 2325.88
A15: 47 | B15: 11 | C15: egg late 2 | D15: 10000 | E15: 1482.9382 | F15: 1482.9382 | G15: egg late 2 | H15: 100000 | I15: 30185.854 | J15: 30185.854 * 921.364 / 13595.2604 = 2045.7246 | K15: 2045.7246 | L15: 1764.33
A16: 48 | B16: 12 | C16: egg late 2 | D16: 1000 | E16: 1275.0641 | F16: 1275.0641 | G16: egg late 2 | H16: 10000 | I16: 27537.2213 | J16: 27537.2213 * 921.364 / 13595.2604 = 1866.2242 | K16: 1866.2242 | L16: 1570.64
A17: 49 | B17: 13 | C17: egg late 3 | D17: 10000 | E17: 1088.0529 | F17: 1088.0529 | G17: egg late 3 | H17: 100000 | I17: 25999.5582 | J17: 25999.5582 * 921.364 / 13595.2604 = 1762.0153 | K17: 1762.0153 | L17: 1425.03
A18: 50 | B18: 14 | C18: egg late 3 | D18: 1000 | E18: 1117.1932 | F18: 1117.1932 | G18: egg late 3 | H18: 10000 | I18: 21396.3905 | J18: 21396.3905 * 921.364 / 13595.2604 = 1450.0542 | K18: 1450.0542 | L18: 1283.62
A19: 65 | B19: 15 | C19: neonatal 1 | D19: 10000 | E19: 664.0219 | F19: 664.0219 | G19: neonatal 1 | H19: 100000 | I19: 15231.1471 | J19: 15231.1471 * 921.364 / 13595.2604 = 1032.2296 | K19: 1032.2296 | L19: 848.13
A20: 66 | B20: 16 | C20: neonatal 1 | D20: 1000 | E20: 657.4678 | F20: 657.4678 | G20: neonatal 1 | H20: 10000 | I20: 11917.1684 | J20: 11917.1684 * 921.364 / 13595.2604 = 807.6381 | K20: 807.6381 | L20: 732.55
A21: 67 | B21: 17 | C21: neonatal 2 | D21: 10000 | E21: 502.3046 | F21: 502.3046 | G21: neonatal 2 | H21: 100000 | I21: 16549.8531 | J21: 16549.8531 * 921.364 / 13595.2604 = 1121.5996 | K21: 1121.5996 | L21: 811.95
A22: 68 | B22: 18 | C22: neonatal 2 | D22: 1000 | E22: 545.0619 | F22: 545.0619 | G22: neonatal 2 | H22: 10000 | I22: 23850.148 | J22: 23850.148 * 921.364 / 13595.2604 = 1616.3477 | K22: 1616.3477 | L22: 1080.7
A23: 69 | B23: 19 | C23: neonatal 3 | D23: 10000 | E23: / | F23: / | G23: neonatal 3 | H23: 100000 | I23: 28138.1361 | J23: 28138.1361 * 921.364 / 13595.2604 = 1906.9488 | K23: 1906.9488 | L23: 1906.95
A24: 70 | B24: 20 | C24: neonatal 3 | D24: 1000 | E24: / | F24: / | G24: neonatal 3 | H24: 10000 | I24: 21459.9651 | J24: 21459.9651 * 921.364 / 13595.2604 = 1454.3627 | K24: 1454.3627 | L24: 1454.36
A25: 1 | B25: 21 | C25: 2nd larva 2 | D25: 10000 | E25: 756.0565 | F25: 756.0565 | G25: 2nd larva 2 | H25: 100000 | I25: 14623.9072 | J25: 14623.9072 * 921.364 / 13595.2604 = 991.0764 | K25: 991.0764 | L25: 873.57
A26: 2 | B26: 22 | C26: 2nd larva 2 | D26: 1000 | E26: 1099.3639 | F26: 1099.3639 | G26: 2nd larva 2 | H26: 10000 | I26: 12225.6225 | J26: 12225.6225 * 921.364 / 13595.2604 = 828.5423 | K26: 828.5423 | L26: 963.95
A27: 3 | B27: 23 | C27: 2nd larva 3 | D27: 10000 | E27: 1601.6273 | F27: 1601.6273 | G27: 2nd larva 3 | H27: 100000 | I27: 28958.128 | J27: 28958.128 * 921.364 / 13595.2604 = 1962.5204 | K27: 1962.5204 | L27: 1782.07
A28: 4 | B28: 24 | C28: 2nd larva 3 | D28: 1000 | E28: 1646.5479 | F28: 1646.5479 | G28: 2nd larva 3 | H28: 10000 | I28: 23704.9275 | J28: 23704.9275 * 921.364 / 13595.2604 = 1606.5059 | K28: 1606.5059 | L28: 1626.53
A29: 5 | B29: 25 | C29: 2nd larva 4 | D29: 10000 | E29: 1295.5659 | F29: 1295.5659 | G29: 2nd larva 4 | H29: 100000 | I29: 23600.2305 | J29: 23600.2305 * 921.364 / 13595.2604 = 1599.4105 | K29: 1599.4105 | L29: 1447.49
A30: 6 | B30: 26 | C30: 2nd larva 4 | D30: 1000 | E30: 1436.0721 | F30: 1436.0721 | G30: 2nd larva 4 | H30: 10000 | I30: 20324.527 | J30: 20324.527 * 921.364 / 13595.2604 = 1377.4129 | K30: 1377.4129 | L30: 1406.74
A31: 7 | B31: 27 | C31: 2nd larva 5 | D31: 10000 | E31: 1404.6604 | F31: 1404.6604 | G31: 2nd larva 5 | H31: 100000 | I31: 24217.5123 | J31: 24217.5123 * 921.364 / 13595.2604 = 1641.2443 | K31: 1641.2443 | L31: 1522.95
A32: 8 | B32: 28 | C32: 2nd larva 5 | D32: 1000 | E32: 1397.4479 | F32: 1397.4479 | G32: 2nd larva 5 | H32: 10000 | I32: 20132.082 | J32: 20132.082 * 921.364 / 13595.2604 = 1364.3707 | K32: 1364.3707 | L32: 1380.91
A33: 9 | B33: 29 | C33: 3rd larva 1 | D33: 10000 | E33: 1108.8323 | F33: 1108.8323 | G33: 3rd larva 1 | H33: 100000 | I33: 7538.0786 | J33: 7538.0786 * 921.364 / 13595.2604 = 510.8629 | K33: 510.8629 | L33: 809.85
A34: 10 | B34: 30 | C34: 3rd larva 1 | D34: 1000 | E34: 989.679 | F34: 989.679 | G34: 3rd larva 1 | H34: 10000 | I34: 5786.7294 | J34: 5786.7294 * 921.364 / 13595.2604 = 392.1723 | K34: 392.1723 | L34: 690.93
A35: 11 | B35: 31 | C35: 3rd larva 2 | D35: 10000 | E35: 1420.2673 | F35: 1420.2673 | G35: 3rd larva 2 | H35: 100000 | I35: 18449.3132 | J35: 18449.3132 * 921.364 / 13595.2604 = 1250.3279 | K35: 1250.3279 | L35: 1335.3
A36: 12 | B36: 32 | C36: 3rd larva 2 | D36: 1000 | E36: 1922.8778 | F36: 1922.8778 | G36: 3rd larva 2 | H36: 10000 | I36: 14953.3704 | J36: 14953.3704 * 921.364 / 13595.2604 = 1013.4044 | K36: 1013.4044 | L36: 1468.14
A37: 13 | B37: 33 | C37: 3rd larva 3 | D37: 10000 | E37: 1192.0384 | F37: 1192.0384 | G37: 3rd larva 3 | H37: 100000 | I37: 11832.8852 | J37: 11832.8852 * 921.364 / 13595.2604 = 801.9261 | K37: 801.9261 | L37: 996.98
A38: 14 | B38: 34 | C38: 3rd larva 3 | D38: 1000 | E38: 1216.8565 | F38: 1216.8565 | G38: 3rd larva 3 | H38: 10000 | I38: 8656.2433 | J38: 8656.2433 * 921.364 / 13595.2604 = 586.642 | K38: 586.642 | L38: 901.75
A39: 15 | B39: 35 | C39: 4th early larva 1 | D39: 10000 | E39: 1813.8104 | F39: 1813.8104 | G39: 4th early larva 1 | H39: 100000 | I39: 12773.7386 | J39: 12773.7386 * 921.364 / 13595.2604 = 865.6887 | K39: 865.6887 | L39: 1339.75
A40: 16 | B40: 36 | C40: 4th early larva 1 | D40: 1000 | E40: 2139.2685 | F40: 2139.2685 | G40: 4th early larva 1 | H40: 10000 | I40: 14118.94 | J40: 14118.94 * 921.364 / 13595.2604 = 956.8543 | K40: 956.8543 | L40: 1548.06
A41: 17 | B41: 37 | C41: 4th early larva 2 | D41: 10000 | E41: 995.2141 | F41: 995.2141 | G41: 4th early larva 2 | H41: 100000 | I41: 9219.4833 | J41: 9219.4833 * 921.364 / 13595.2604 = 624.8133 | K41: 624.8133 | L41: 810.01
A42: 18 | B42: 38 | C42: 4th early larva 2 | D42: 1000 | E42: 1127.1048 | F42: 1127.1048 | G42: 4th early larva 2 | H42: 10000 | I42: 6921.8951 | J42: 6921.8951 * 921.364 / 13595.2604 = 469.1036 | K42: 469.1036 | L42: 798.1
A43: 19 | B43: 39 | C43: 4th early larva 3 | D43: 10000 | E43: 1581.7482 | F43: 1581.7482 | G43: 4th early larva 3 | H43: 100000 | I43: 20371.2067 | J43: 20371.2067 * 921.364 / 13595.2604 = 1380.5765 | K43: 1380.5765 | L43: 1481.16
A44: 20 | B44: 40 | C44: 4th early larva 3 | D44: 1000 | E44: 1273.9246 | F44: 1273.9246 | G44: 4th early larva 3 | H44: 10000 | I44: 19188.0214 | J44: 19188.0214 * 921.364 / 13595.2604 = 1300.3908 | K44: 1300.3908 | L44: 1287.16
A45: 21 | B45: 41 | C45: 4th early larva 4 | D45: 10000 | E45: 1311.9571 | F45: 1311.9571 | G45: 4th early larva 4 | H45: 100000 | I45: 16939.9637 | J45: 16939.9637 * 921.364 / 13595.2604 = 1148.0378 | K45: 1148.0378 | L45: 1230
A46: 22 | B46: 42 | C46: 4th early larva 4 | D46: 1000 | E46: 1444.7105 | F46: 1444.7105 | G46: 4th early larva 4 | H46: 10000 | I46: 13894.4188 | J46: 13894.4188 * 921.364 / 13595.2604 = 941.6382 | K46: 941.6382 | L46: 1193.17
A47: 23 | B47: 43 | C47: 4th late larva 1 | D47: 10000 | E47: 1441.0018 | F47: 1441.0018 | G47: 4th late larva 1 | H47: 100000 | I47: 9518.9722 | J47: 9518.9722 * 921.364 / 13595.2604 = 645.11 | K47: 645.11 | L47: 1043.06
A48: 24 | B48: 44 | C48: 4th late larva 1 | D48: 1000 | E48: 1600.6482 | F48: 1600.6482 | G48: 4th late larva 1 | H48: 10000 | I48: 7473.1031 | J48: 7473.1031 * 921.364 / 13595.2604 = 506.4595 | K48: 506.4595 | L48: 1053.55
A49: 25 | B49: 45 | C49: 4th late larva 2 | D49: 10000 | E49: 1180.7401 | F49: 1180.7401 | G49: 4th late larva 2 | H49: 100000 | I49: 7142.6712 | J49: 7142.6712 * 921.364 / 13595.2604 = 484.0658 | K49: 484.0658 | L49: 832.4
A50: 26 | B50: 46 | C50: 4th late larva 2 | D50: 1000 | E50: 1229.4849 | F50: 1229.4849 | G50: 4th late larva 2 | H50: 10000 | I50: 5533.4541 | J50: 5533.4541 * 921.364 / 13595.2604 = 375.0076 | K50: 375.0076 | L50: 802.25
A51: 27 | B51: 47 | C51: 4th late larva 3 | D51: 10000 | E51: / | F51: / | G51: 4th late larva 3 | H51: 100000 | I51: 5510.422 | J51: 5510.422 * 921.364 / 13595.2604 = 373.4466 | K51: 373.4466 | L51: 373.45
A52: 28 | B52: 48 | C52: 4th late larva 3 | D52: 1000 | E52: / | F52: / | G52: 4th late larva 3 | H52: 10000 | I52: 5124.7888 | J52: 5124.7888 * 921.364 / 13595.2604 = 347.3119 | K52: 347.3119 | L52: 347.31
A53: 29 | B53: 49 | C53: 4th late larva 4 | D53: 10000 | E53: 1692.9292 | F53: 1692.9292 | G53: 4th late larva 4 | H53: 100000 | I53: 13188.6851 | J53: 13188.6851 * 921.364 / 13595.2604 = 893.81 | K53: 893.81 | L53: 1293.37
A54: 30 | B54: 50 | C54: 4th late larva 4 | D54: 1000 | E54: 1903.1658 | F54: 1903.1658 | G54: 4th late larva 4 | H54: 10000 | I54: 14208.3381 | J54: 14208.3381 * 921.364 / 13595.2604 = 962.9129 | K54: 962.9129 | L54: 1433.04
A55: 71 | B55: 51 | C55: pupa 1 | D55: 10000 | E55: 181.1676 | F55: 181.1676 | G55: pupa 1 | H55: 100000 | I55: 5049.3654 | J55: 5049.3654 * 921.364 / 13595.2604 = 342.2004 | K55: 342.2004 | L55: 261.68
A56: 72 | B56: 52 | C56: pupa 1 | D56: 1000 | E56: 179.3339 | F56: 179.3339 | G56: pupa 1 | H56: 10000 | I56: 5059.6746 | J56: 5059.6746 * 921.364 / 13595.2604 = 342.8991 | K56: 342.8991 | L56: 261.12
A57: 73 | B57: 53 | C57: pupa 2 | D57: 10000 | E57: 233.3584 | F57: 233.3584 | G57: pupa 2 | H57: 100000 | I57: 6067.7298 | J57: 6067.7298 * 921.364 / 13595.2604 = 411.2159 | K57: 411.2159 | L57: 322.29
A58: 74 | B58: 54 | C58: pupa 2 | D58: 1000 | E58: 204.3243 | F58: 204.3243 | G58: pupa 2 | H58: 10000 | I58: 6409.6404 | J58: 6409.6404 * 921.364 / 13595.2604 = 434.3876 | K58: 434.3876 | L58: 319.36
A59: 75 | B59: 55 | C59: pupa 3 | D59: 10000 | E59: 338.6959 | F59: 338.6959 | G59: pupa 3 | H59: 100000 | I59: 6881.7235 | J59: 6881.7235 * 921.364 / 13595.2604 = 466.3811 | K59: 466.3811 | L59: 402.54
A60: 76 | B60: 56 | C60: pupa 3 | D60: 1000 | E60: 293.254 | F60: 293.254 | G60: pupa 3 | H60: 10000 | I60: 7100.0399 | J60: 7100.0399 * 921.364 / 13595.2604 = 481.1766 | K60: 481.1766 | L60: 387.22
A61: 77 | B61: 57 | C61: pupa 4 | D61: 10000 | E61: 52.3234 | F61: 52.3234 | G61: pupa 4 | H61: 100000 | I61: 2554.6514 | J61: 2554.6514 * 921.364 / 13595.2604 = 173.1312 | K61: 173.1312 | L61: 112.73
A62: 78 | B62: 58 | C62: pupa 4 | D62: 1000 | E62: 68.4199 | F62: 68.4199 | G62: pupa 4 | H62: 10000 | I62: 2268.1268 | J62: 2268.1268 * 921.364 / 13595.2604 = 153.7132 | K62: 153.7132 | L62: 111.07
A63: 31 | B63: 59 | C63: adult 1 | D63: 10000 | E63: 706.6417 | F63: 706.6417 | G63: adult 1 | H63: 100000 | I63: 8165.5395 | J63: 8165.5395 * 921.364 / 13595.2604 = 553.3865 | K63: 553.3865 | L63: 630.01
A64: 32 | B64: 60 | C64: adult 1 | D64: 1000 | E64: 689.1668 | F64: 689.1668 | G64: adult 1 | H64: 10000 | I64: 7521.036 | J64: 7521.036 * 921.364 / 13595.2604 = 509.7079 | K64: 509.7079 | L64: 599.44
A65: 33 | B65: 61 | C65: adult 2 | D65: 10000 | E65: 330.1115 | F65: 330.1115 | G65: adult 2 | H65: 100000 | I65: 14294.8185 | J65: 14294.8185 * 921.364 / 13595.2604 = 968.7737 | K65: 968.7737 | L65: 649.44
A66: 34 | B66: 62 | C66: adult 2 | D66: 1000 | E66: 261.6064 | F66: 261.6064 | G66: adult 2 | H66: 10000 | I66: 13457.2683 | J66: 13457.2683 * 921.364 / 13595.2604 = 912.0121 | K66: 912.0121 | L66: 586.81
A67: 35 | B67: 63 | C67: adult 3 | D67: 10000 | E67: 105.4263 | F67: 105.4263 | G67: adult 3 | H67: 100000 | I67: 5804.5843 | J67: 5804.5843 * 921.364 / 13595.2604 = 393.3823 | K67: 393.3823 | L67: 249.4
A68: 36 | B68: 64 | C68: adult 3 | D68: 1000 | E68: 123.6234 | F68: 123.6234 | G68: adult 3 | H68: 10000 | I68: 6168.4138 | J68: 6168.4138 * 921.364 / 13595.2604 = 418.0394 | K68: 418.0394 | L68: 270.83
A69: 37 | B69: 65 | C69: adult 4 | D69: 10000 | E69: 352.3724 | F69: 352.3724 | G69: adult 4 | H69: 100000 | I69: 10888.8129 | J69: 10888.8129 * 921.364 / 13595.2604 = 737.9454 | K69: 737.9454 | L69: 545.16
A70: 38 | B70: 66 | C70: adult 4 | D70: 1000 | E70: 347.9296 | F70: 347.9296 | G70: adult 4 | H70: 10000 | I70: 13342.5052 | J70: 13342.5052 * 921.364 / 13595.2604 = 904.2345 | K70: 904.2345 | L70: 626.08
A71: 55 | B71: 67 | C71: foregut | D71: 10000 | E71: 568.5946 | F71: 568.5946 | G71: foregut | H71: 100000 | I71: 8139.1866 | J71: 8139.1866 * 921.364 / 13595.2604 = 551.6006 | K71: 551.6006 | L71: 560.1
A72: 56 | B72: 68 | C72: foregut | D72: 1000 | E72: 750.3953 | F72: 750.3953 | G72: foregut | H72: 10000 | I72: 7662.2579 | J72: 7662.2579 * 921.364 / 13595.2604 = 519.2787 | K72: 519.2787 | L72: 634.84
A73: 63 | B73: 69 | C73: midgut | D73: 10000 | E73: 630.1281 | F73: 630.1281 | G73: midgut | H73: 100000 | I73: 8731.8626 | J73: 8731.8626 * 921.364 / 13595.2604 = 591.7668 | K73: 591.7668 | L73: 610.95
A74: 64 | B74: 70 | C74: midgut | D74: 1000 | E74: 656.5211 | F74: 656.5211 | G74: midgut | H74: 10000 | I74: 8411.1291 | J74: 8411.1291 * 921.364 / 13595.2604 = 570.0304 | K74: 570.0304 | L74: 613.28
A75: 59 | B75: 71 | C75: hindgut | D75: 10000 | E75: 21.2526 | F75: 21.2526 | G75: hindgut | H75: 100000 | I75: 284.5903 | J75: 284.5903 * 921.364 / 13595.2604 = 19.287 | K75: 19.287 | L75: 20.27
A76: 60 | B76: 72 | C76: hindgut | D76: 1000 | E76: 30.8963 | F76: 30.8963 | G76: hindgut | H76: 10000 | I76: 315.5273 | J76: 315.5273 * 921.364 / 13595.2604 = 21.3836 | K76: 21.3836 | L76: 26.14
A77: 57 | B77: 73 | C77: haemolymph | D77: 10000 | E77: 610.7256 | F77: 610.7256 | G77: haemolymph | H77: 100000 | I77: 8651.3054 | J77: 8651.3054 * 921.364 / 13595.2604 = 586.3074 | K77: 586.3074 | L77: 598.52
A78: 58 | B78: 74 | C78: haemolymph | D78: 1000 | E78: 677.8748 | F78: 677.8748 | G78: haemolymph | H78: 10000 | I78: 8069.8543 | J78: 8069.8543 * 921.364 / 13595.2604 = 546.9019 | K78: 546.9019 | L78: 612.39
A79: 39 | B79: 75 | C79: carcass | D79: 10000 | E79: 531.8567 | F79: 531.8567 | G79: carcass | H79: 100000 | I79: 13847.6424 | J79: 13847.6424 * 921.364 / 13595.2604 = 938.4682 | K79: 938.4682 | L79: 735.16
A80: 40 | B80: 76 | C80: carcass | D80: 1000 | E80: 741.7337 | F80: 741.7337 | G80: carcass | H80: 10000 | I80: 14298.8867 | J80: 14298.8867 * 921.364 / 13595.2604 = 969.0494 | K80: 969.0494 | L80: 855.39
A81: 61 | B81: 77 | C81: legs | D81: 10000 | E81: 164.7204 | F81: 164.7204 | G81: legs | H81: 100000 | I81: 5689.4244 | J81: 5689.4244 * 921.364 / 13595.2604 = 385.5778 | K81: 385.5778 | L81: 275.15
A82: 62 | B82: 78 | C82: legs | D82: 1000 | E82: 227.5252 | F82: 227.5252 | G82: legs | H82: 10000 | I82: 5143.9564 | J82: 5143.9564 * 921.364 / 13595.2604 = 348.6109 | K82: 348.6109 | L82: 288.07
